[Event "58th Akiba Rubinstein A 2022"]
[Site "Polanica-Zdroj"]
[Date "2022.08.13"]
[Round "1.1"]
[White "Lambrecht, Tomasz"]
[Black "Cyborowski, Lukasz"]
[Result "0-1"]
[ECO "D30"]
[WhiteElo "1956"]
[BlackElo "2483"]
[Annotator "TA"]
[PlyCount "70"]
[EventDate "2022.08.13"]
[EventCountry "POL"]
[SourceTitle "playchess.com"]
[Source "ChessBase"]
[SourceQuality "1"]
[TimeControl "40/5400+30:1800+30"]

{[%evp 9,70,7,14,6,9,0,6,0,10,0,14,0,0,0,0,-6,-6,-6,-6,-6,-6,-6,0,-9,-9,-9,-9,-9,0,-6,0,-17,-17,-17,-16,-44,-61,-125,-125,-160,-168,-222,-226,-375,-373,-566,-570,-522,-463,-521,-264,-441,-445,-659,-643,-1108,-1101,-887,-877,-850,-838,-2183,-2035]} 1. d4 {[%emt 0:00:11]} d5 {[%emt 0:00:09]} 2. c4 {[%emt 0:00:40]} e6 {[%emt 0:00:08]} 3. Nf3 {[%emt 0:00:26]} a6 {[%emt 0:03:04]} 4. cxd5 {[%emt 0:05:31]} exd5 {[%emt 0:00:06]} 5. Bg5 {[%emt 0:00:01]} Be7 {[%emt 0:02:52]} 6. Bxe7 {[%emt 0:00:55] D30: Queen's Gambit Declined: Systems without Nc3.} Nxe7 {[%emt 0:00:06]} 7. Nc3 {[%emt 0:00:29][%cal Bb1c3,Bc3a4,Ba4c5][%mdl 32]} c6 {[%emt 0:00:56]} 8. e3 {[%emt 0:01:06] The position is equal.} O-O {[%emt 0:02:06]} 9. Bd3 {[%emt 0:00:12]} Bf5 {[%emt 0:00:12]} 10. O-O {[%emt 0:00:45]} Nd7 {[%emt 0:00:07]} 11. Rc1 {[%emt 0:02:24]} Re8 {[%emt 0:03:06]} 12. Na4 {[%emt 0:03:46]} Bxd3 {[%emt 0:04:30]} 13. Qxd3 {[%emt 0:00:06]} Nc8 {[%emt 0:00:05]} 14. Nc5 {[%emt 0:05:27]} Nd6 {[%emt 0:00:32]} 15. Qb3 {[%emt 0:03:43]} Rb8 {[%emt 0:03:03]} 16. Nxd7 {[%emt 0:00:58]} Qxd7 {[%emt 0:00:06]} 17. Ne5 {[%emt 0:00:02] [#]} Qf5 $146 {[%emt 0:04:34]} ({Predecessor:} 17... Qe6 18. a4 g6 19. Qb4 Kg7 20. a5 Rbc8 21. b3 h5 22. Nd3 Nb5 23. Nc5 Qe7 {0-1 (66) Srikrishnan,P (1898)-Mirzoev,A (2457) Bhopal 2019}) 18. Qc2 {[%emt 0:11:27]} Qg5 {[%emt 0:02:20]} 19. Rce1 {[%emt 0:04:10]} Re7 {[%emt 0:09:12]} 20. Qb3 {[%emt 0:07:44]} Rbe8 {[%emt 0:01:22]} 21. Qb4 {[%emt 0:00:41]} Re6 {[%emt 0:01:36]} 22. g3 {[%emt 0:04:09]} Qf5 {[%emt 0:08:47]} 23. Qa3 {[%emt 0:07:44]} (23. Qb3 $15) 23... Qh3 $17 {[%emt 0:17:01]} 24. f3 {[%emt 0:10:35]} Nf5 {[%emt 0:03:50][%cal Of5g3] White must now prevent ...Nxg3!} ({Stronger than} 24... Rh6 25. Re2 $11) 25. Nd3 {[%emt 0:08:23]} (25. e4 {might work better.} Nxd4 26. Qc5) 25... Rxe3 $40 {[%emt 0:07:54][%mdl 128] Black wants a kill.} 26. Nf4 {[%emt 0:00:05]} (26. Rxe3 {only move.} Nxe3 27. Rf2) 26... Qxf1+ {[%emt 0:01:16]} 27. Kxf1 {[%emt 0:00:30]} (27. Rxf1 $142 Rxa3 28. bxa3) 27... Rxe1+ {[%emt 0:00:05]} 28. Kg2 {[%emt 0:00:39]} Nxd4 {[%emt 0:00:32]} ({But not} 28... g5 $2 29. Nh5 R1e6 30. Qb4 $19) 29. Qb4 {[%emt 0:00:27]} Ne6 {[%emt 0:00:39] [#] Hoping for ...Nxf4+.} 30. Nxe6 $2 {[%emt 0:04:24]} (30. Qxb7 {was necessary.} Nxf4+ 31. gxf4) 30... R1xe6 {[%emt 0:05:56][%cal Be1e6,Be6e3,Be3e8][%mdl 32] Black is clearly winning.} 31. Qxb7 {[%emt 0:00:28] KQ-KRR} (31. Qb6 $142 R6e7 32. g4) 31... Rd8 {[%emt 0:00:16]} 32. Qxa6 {[%emt 0:01:52]} d4 {[%emt 0:00:09][%cal Bd5d4,Bd4d3][%mdl 32] And now ...d3 would win.} 33. Qd3 {[%emt 0:02:55]} Re3 {[%emt 0:00:15]} 34. Qd2 {[%emt 0:00:02] [#]} d3 $1 {[%emt 0:00:56] ( -> ...Re2+)} 35. Qa5 {[%emt 0:03:43]} (35. Kh3 Re2) 35... Ree8 {[%emt 0:00:20] Weighted Error Value: White=0.67/Black=0.11 (very precise)} 0-1

[Event "58th Akiba Rubinstein A 2022"]
[Site "Polanica-Zdroj"]
[Date "2022.08.13"]
[Round "1.2"]
[White "Razin, Vadim"]
[Black "Kolodziejski, Piotr"]
[Result "1-0"]
[ECO "D52"]
[WhiteElo "2428"]
[BlackElo "2107"]
[Annotator "TA"]
[PlyCount "81"]
[EventDate "2022.08.13"]
[EventCountry "POL"]
[SourceTitle "playchess.com"]
[Source "ChessBase"]
[SourceQuality "1"]
[TimeControl "40/5400+30:1800+30"]

{[%evp 18,81,21,16,17,8,12,13,25,29,45,23,28,19,33,22,27,14,12,12,14,12,59,59,54,46,57,52,57,47,57,55,59,30,30,30,30,30,30,35,287,39,31,36,116,108,104,0,9,-20,57,0,664,636,648,628,598,52,752,668,600,529,29992,29993,29993,29994]} 1. d4 {[%emt 0:00:08]} d5 {[%emt 0:00:11]} 2. Nf3 {[%emt 0:00:07]} Nf6 {[%emt 0:00:10]} 3. c4 {[%emt 0:00:08]} c6 {[%emt 0:00:28]} 4. Nc3 {[%emt 0:00:06]} e6 {[%emt 0:00:17]} 5. Bg5 {[%emt 0:00:05]} Nbd7 {[%emt 0:00:26]} 6. e3 {[%emt 0:00:09]} Qa5 {[%emt 0:00:52]} 7. cxd5 {[%emt 0:00:12]} Nxd5 {[%emt 0:01:10]} 8. Qd2 {[%emt 0:00:06]} Bb4 {[%emt 0:01:42]} 9. Rc1 {[%emt 0:00:04]} h6 {[%emt 0:00:53]} 10. Bh4 {[%emt 0:00:05]} b6 {[%emt 0:02:27] D52: Queen's Gambit Declined: Cambridge Springs Variation.} 11. Bd3 {[%emt 0:02:33]} Ba6 {[%emt 0:05:00]} 12. O-O {[%emt 0:00:47]} Bxd3 {[%emt 0:02:24] The position is equal.} (12... O-O {with more complications.} 13. Rfd1 Rac8 14. e4 Nxc3 15. bxc3 Ba3) 13. Qxd3 {[%emt 0:00:06]} Nxc3 {[%emt 0:00:21]} 14. bxc3 {[%emt 0:00:04]} Ba3 {[%emt 0:07:29]} 15. Rb1 {[%emt 0:04:47] [#]} Rc8 $146 {[%emt 0:05:26]} ({Predecessor:} 15... O-O 16. c4 Bd6 17. Qc2 Qh5 18. Rfd1 Rac8 19. c5 Bb8 20. cxb6 axb6 21. e4 Rfe8 {½-½ (47) Indjic,A (2620)-Dreev,A (2670) St Petersburg 2018}) 16. c4 {[%emt 0:07:49]} Bd6 {[%emt 0:17:37]} 17. e4 {[%emt 0:03:35]} O-O {[%emt 0:04:05]} 18. e5 {[%emt 0:00:32]} Bc7 {[%emt 0:01:14]} 19. Rb3 {[%emt 0:03:31]} Qa6 {[%emt 0:02:45]} (19... b5 $11) 20. Ra3 $14 {[%emt 0:01:39]} Qb7 {[%emt 0:00:13]} 21. Qe4 {[%emt 0:00:35]} Bd8 {[%emt 0:04:09]} 22. Nd2 {[%emt 0:06:56]} Re8 {[%emt 0:06:49]} 23. Rg3 {[%emt 0:26:36]} f5 {[%emt 0:12:07] Against Qg4} 24. exf6 $1 {[%emt 0:00:05]} Nxf6 {[%emt 0:01:14]} 25. Qg6 {[%emt 0:05:51][%csl LRf6,LRh6]} Qf7 $1 {[%emt 0:10:01] aiming for ...Qxg6.} 26. Qxh6 {[%emt 0:01:00] Threatens to win with Bxf6.} Nh5 {[%emt 0:07:47] [#]} 27. Rg6 {[%emt 0:00:07]} Nf4 {[%emt 0:00:44]} 28. Rg4 {[%emt 0:00:07] Really sharp!} Ne2+ {[%emt 0:00:51]} 29. Kh1 {[%emt 0:00:01]} Nxd4 {[%emt 0:00:55]} 30. Bxd8 {[%emt 0:00:34]} Rcxd8 {[%emt 0:01:08]} (30... Nf5 $14 31. Qg5 Rcxd8) 31. Ne4 $16 {[%emt 0:00:15]} Rf8 {[%emt 0:01:31]} 32. Qh3 {[%emt 0:15:04] 0x0.0013bbe7e866dp-1022s more active pieces.} ({Better is} 32. Rg6 $16 {Ng5 is the strong threat.} Nf5 33. Qh5) 32... Nf5 $1 $11 {[%emt 0:01:34]} 33. Rg5 {[%emt 0:12:47]} Rfe8 {[%emt 0:01:32]} (33... Rd4 $11 34. Rh5 Nh6) 34. g4 $40 {[%emt 0:01:13][%mdl 128] White has some attack.} (34. Re1 $14) 34... Ne7 $2 {[%emt 0:00:52][%mdl 8192]} (34... Nd6 $11 35. f3 e5) 35. f4 $18 {[%emt 0:04:09] Hoping for f5.} Rd4 {[%emt 0:00:12] [#]} 36. Rh5 $1 {[%emt 0:03:20][%csl Gh3][%cal Rh5h8]} Ng6 {[%emt 0:00:03] [#] Prevents Rh8+.} 37. Ng5 {[%emt 0:00:24]} (37. f5 $1 $18 {[%cal Rf5g6]} exf5 38. Rhxf5) 37... Qf6 {[%emt 0:01:11][%mdl 8192]} (37... Qd7 $14) 38. f5 {[%emt 0:00:16]} exf5 {[%emt 0:00:35]} 39. gxf5 {[%emt 0:00:01]} c5 {[%emt 0:01:02]} 40. fxg6 {[%emt 0:00:00][%csl Gh3][%cal Rh5h8]} Qc6+ {[%emt 0:00:00]} 41. Kg1 {[%emt 0:00:34] Weighted Error Value: White=0.32/Black=0.44} 1-0

[Event "58th Akiba Rubinstein A 2022"]
[Site "Polanica-Zdroj"]
[Date "2022.08.13"]
[Round "1.3"]
[White "Czechowski, Jakub"]
[Black "Kowalczyk, Rafal"]
[Result "1-0"]
[ECO "E40"]
[WhiteElo "2003"]
[BlackElo "2239"]
[Annotator "TA"]
[PlyCount "59"]
[EventDate "2022.08.13"]
[EventCountry "POL"]
[SourceTitle "playchess.com"]
[Source "ChessBase"]
[SourceQuality "1"]
[TimeControl "40/5400+30:1800+30"]

{[%evp 14,59,37,28,29,22,49,47,68,10,18,16,87,53,77,34,17,18,131,22,41,35,59,46,41,60,56,0,16,0,37,-5,66,0,212,195,203,210,158,159,1501,1399,2555,2019,29985,29982,29983,973]} 1. d4 {[%emt 0:00:07]} Nf6 {[%emt 0:02:03]} 2. c4 {[%emt 0:00:07]} e6 {[%emt 0:00:09]} 3. Nc3 {[%emt 0:00:06]} Bb4 {[%emt 0:01:29]} 4. e3 {[%emt 0:00:05]} Bxc3+ {[%emt 0:13:17]} 5. bxc3 {[%emt 0:00:13]} b6 {[%emt 0:00:07]} 6. Bd3 {[%emt 0:01:05]} Bb7 {[%emt 0:00:21]} 7. f3 {[%emt 0:00:06]} d6 {[%emt 0:10:00]} 8. Ne2 {[%emt 0:02:11]} Nc6 {[%emt 0:03:40] E43: Nimzo-Indian: Rubinstein: 4...b6.} 9. e4 {[%emt 0:01:47]} h6 {[%emt 0:00:24]} 10. O-O {[%emt 0:13:52]} Na5 {[%emt 0:10:33] [#] White is slightly better.} 11. d5 $146 {[%emt 0:09:28]} (11. Ng3 $14) ({Predecessor:} 11. Ng3 Ba6 12. f4 Qd7 13. e5 Ng8 14. f5 O-O-O 15. Qg4 g5 16. fxe6 fxe6 17. d5 {1-0 (35) Perez Coyula,R (2050)-Lledo Perez,S (1957) Havana 2018}) 11... Nd7 {[%emt 0:07:07]} 12. Nd4 {[%emt 0:02:29]} Qf6 {[%emt 0:04:04] [#]} (12... Qe7 $11 {remains equal.}) 13. f4 $1 $16 {[%emt 0:14:21][%cal Oe4e5,Bf3f4,Bf4f5][%mdl 32] e5! is the strong threat.} O-O-O {[%emt 0:14:51]} 14. f5 {[%emt 0:03:22][%cal Rf5e6]} (14. Ba3 $5 {[%cal Ra3b4]}) 14... exd5 {[%emt 0:07:41]} 15. cxd5 {[%emt 0:00:22]} c5 {[%emt 0:07:34] [#]} (15... Nc5 $11) 16. dxc6 {[%emt 0:03:05] White is more active.} (16. Nf3 $1 $16) 16... Nxc6 $11 {[%emt 0:00:07] Pair of Knights!} 17. Be3 {[%emt 0:05:44]} Nc5 {[%emt 0:00:19]} 18. Nxc6 {[%emt 0:01:54]} Bxc6 {[%emt 0:00:18]} 19. Bd4 $36 {[%emt 0:00:05][%mdl 2048] White fights for an advantage.} Qg5 {[%emt 0:01:29]} 20. Qf3 {[%emt 0:07:32]} (20. Rf3 $5 {[%cal Rf3g3]}) 20... Rhe8 {[%emt 0:03:56]} 21. Rfe1 {[%emt 0:05:34][%cal Oa2a4]} h5 {[%emt 0:02:04]} 22. Rad1 {[%emt 0:02:29][%cal Ba1d1,Bd1d6,Bd6c6][%mdl 32]} (22. a4 $5) 22... f6 {[%emt 0:05:13]} ({Black should play} 22... Nxd3 $11 23. Qxd3 Kb7) 23. h3 {[%emt 0:07:16]} ({Better is} 23. Bc2 $1 $14) 23... Qh6 $2 {[%emt 0:04:31]} (23... Nxd3 $11 24. Rxd3 h4) 24. Bxc5 $18 {[%emt 0:01:28]} bxc5 {[%emt 0:00:06]} 25. Bc4 {[%emt 0:01:12]} Kc7 {[%emt 0:00:58]} 26. Be6 {[%emt 0:00:06]} Rb8 $2 {[%emt 0:00:37] [#] A mistake that costs the game.} (26... a5 $16 27. Bf7 Re5) 27. Rxd6 $3 {[%emt 0:00:16][%mdl 512] Hoping for Qg3.} h4 {[%emt 0:00:30] Against Qg3} (27... Red8 28. Rxd8) 28. Red1 {[%emt 0:00:21] Qd3 would kill now.} Rb2 {[%emt 0:00:22] [#]} 29. Rxc6+ $1 {[%emt 0:01:07][%mdl 512]} Kxc6 {[%emt 0:00:12]} (29... Kb8 30. Rxc5) 30. Bd7+ {[%emt 0:00:04] Weighted Error Value: White=0.21 (precise) /Black=0.86} (30. Qd3 $142 Rxe6 31. fxe6 Kb6 32. e7 Qf4 33. Qd8+ Kb7 34. Rd7+ Ka6 35. Rd6+ Qxd6 36. Qxd6+ Rb6 37. Qd3+ c4 38. Qxc4+ Kb7 39. e8=Q) 1-0

[Event "58th Akiba Rubinstein A 2022"]
[Site "Polanica-Zdroj"]
[Date "2022.08.13"]
[Round "1.4"]
[White "Koziorowicz, Michal"]
[Black "Kazmierowski, Tymon"]
[Result "1-0"]
[ECO "B52"]
[WhiteElo "2231"]
[BlackElo "1961"]
[Annotator "TA"]
[PlyCount "115"]
[EventDate "2022.08.13"]
[EventCountry "POL"]
[SourceTitle "playchess.com"]
[Source "ChessBase"]
[SourceQuality "1"]
[TimeControl "40/5400+30:1800+30"]

{[%evp 16,115,9,14,9,13,24,-2,76,75,78,73,72,65,74,81,86,67,87,78,96,103,90,75,83,62,87,86,79,47,57,0,0,16,19,0,21,7,24,22,31,0,0,0,0,0,0,0,0,-21,0,-2,0,-58,-47,-52,-27,-31,-35,-30,-31,-17,-14,-14,22,22,221,218,272,268,247,235,293,177,179,102,108,111,121,121,134,126,252,216,250,250,270,267,289,275,777,781,847,801,29972,29974,29970,29971,29988,29989,29990,29991]} 1. e4 {[%emt 0:00:45]} c5 {[%emt 0:00:10]} 2. Nf3 {[%emt 0:00:34]} d6 {[%emt 0:00:07]} 3. Bb5+ {[%emt 0:00:18]} Bd7 {[%emt 0:00:23]} 4. Bxd7+ {[%emt 0:00:07]} Nxd7 {[%emt 0:00:06]} 5. O-O {[%emt 0:01:01]} Ngf6 {[%emt 0:00:06][%cal Bg8f6,Bf6e8,Be8d6][%mdl 32]} 6. Re1 {[%emt 0:00:26]} e6 {[%emt 0:00:41]} 7. c3 {[%emt 0:00:06]} Be7 {[%emt 0:00:15]} 8. d4 {[%emt 0:00:06]} O-O {[%emt 0:00:37] is now more promising than 8...cxd4.} 9. e5 {[%emt 0:01:22]} Ne8 {[%emt 0:00:54] B52: Sicilian: Moscow Variation with 3...Bd7.} 10. exd6 {[%emt 0:01:29]} Nxd6 {[%emt 0:03:10]} 11. Bf4 {[%emt 0:08:54] [#]} Qb6 $146 {[%emt 0:06:47]} (11... cxd4 $11 12. Nxd4 Qb6) ({Predecessor:} 11... Rc8 12. Nbd2 cxd4 13. Nxd4 Nb6 14. Qg4 Bf6 15. Bxd6 Qxd6 16. Ne4 Qe7 17. Nb5 Rcd8 18. Nxa7 {½-½ (59) Vandenbussche,T (2432)-Van der Stricht,G (2380) Bruges 2021}) 12. d5 $1 $16 {[%emt 0:12:18]} Rae8 {[%emt 0:15:59]} 13. dxe6 {[%emt 0:02:22]} fxe6 {[%emt 0:00:14]} 14. Bxd6 {[%emt 0:00:19]} Bxd6 {[%emt 0:02:10]} (14... Qxd6 $2 15. Qxd6 Bxd6 16. Rd1 $18) 15. Nbd2 {[%emt 0:05:25] Hoping for Nc4.} Qc6 {[%emt 0:03:37]} (15... Qxb2 $2 16. Nc4 Qxc3 17. Nxd6 $18) 16. Qb3 {[%emt 0:14:59]} Kh8 {[%emt 0:12:31]} 17. Re2 {[%emt 0:07:17]} Re7 {[%emt 0:13:36]} 18. Rae1 {[%emt 0:00:42]} Rfe8 {[%emt 0:00:17]} 19. Ne4 {[%emt 0:10:14]} Bc7 {[%emt 0:02:59]} 20. h4 {[%emt 0:06:51]} Nf6 {[%emt 0:10:18]} 21. Qc4 {[%emt 0:03:35]} b6 {[%emt 0:04:56]} 22. Nfg5 {[%emt 0:05:43]} Nd5 {[%emt 0:02:10]} 23. b4 {[%emt 0:05:57]} h6 {[%emt 0:05:02]} 24. b5 {[%emt 0:01:13]} Qd7 {[%emt 0:01:41]} 25. Nh3 {[%emt 0:01:49]} Rf8 {[%emt 0:01:58]} 26. Qd3 {[%emt 0:01:39]} Nf4 {[%emt 0:01:50]} 27. Nxf4 {[%emt 0:00:04]} Rxf4 {[%emt 0:00:04]} 28. Rd1 {[%emt 0:04:20]} Qxd3 {[%emt 0:02:27]} 29. Rxd3 {[%emt 0:00:01]} Rxh4 {[%emt 0:00:09][%cal Bf4h4,Bh4h5,Bh5f5,Bf5f8][%mdl 32]} 30. g3 {[%emt 0:01:53]} Rh5 {[%emt 0:00:15]} 31. c4 {[%emt 0:01:05] Inhibits Rd5.} Rf5 {[%emt 0:02:17]} 32. Rde3 {[%emt 0:01:28]} Be5 {[%emt 0:04:22]} 33. Ra3 {[%emt 0:01:08]} Bd4 {[%emt 0:00:46]} 34. Nd6 {[%emt 0:00:32]} (34. Ra6 $11) 34... Rf8 $1 $15 {[%emt 0:00:08]} 35. Kg2 {[%emt 0:00:52]} Rd7 {[%emt 0:01:23]} 36. Ne4 {[%emt 0:00:29]} Kh7 {[%emt 0:00:33]} 37. Ra6 {[%emt 0:00:09]} Kg6 {[%emt 0:01:01]} 38. a4 {[%emt 0:00:07]} Bf6 {[%emt 0:01:35]} 39. a5 {[%emt 0:01:14]} Bd8 {[%emt 0:00:31]} 40. Nd2 {[%emt 0:00:00][%mdl 1024] White has compensation.} Rf6 {[%emt 0:00:00]} (40... bxa5 $11 41. Nb3 Bb6) 41. Nf3 $18 {[%emt 0:00:35] Black must now prevent Ne5+.} Kh7 {[%emt 0:10:55] [#]} 42. Ne5 $1 {[%emt 0:00:14]} Rb7 {[%emt 0:00:34]} 43. Rd2 {[%emt 0:02:13]} Rf8 {[%emt 0:02:05]} 44. Nc6 {[%emt 0:00:35]} Bf6 {[%emt 0:00:31]} 45. Rxa7 {[%emt 0:05:15]} (45. Nxa7 $18 Bc3 46. Re2) 45... Rxa7 $16 {[%emt 0:00:12]} 46. Nxa7 $18 {[%emt 0:00:04][%mdl 4096] Endgame And now a6 would win. KRB-KRN} Bc3 {[%emt 0:01:13]} 47. Rd6 {[%emt 0:01:15] aiming for a6.} Bxa5 {[%emt 0:00:07]} 48. Rxe6 {[%emt 0:00:42]} Rf7 {[%emt 0:05:09]} (48... Rd8 $16 {might work better.}) 49. Nc8 {[%emt 0:03:05]} Rd7 {[%emt 0:00:41] [#]} 50. Nd6 $1 {[%emt 0:01:27]} ({Don't do} 50. Nxb6 $6 Bxb6 51. Rxb6 Rd4 $16) 50... Bc3 {[%emt 0:01:25]} 51. f4 {[%emt 0:01:31]} Ra7 {[%emt 0:02:52]} 52. Kf3 {[%emt 0:02:14]} Ra3 $2 (52... Ra4 53. Ke4 Be1) 53. Re3 {[%emt 0:00:06]} Kg6 {[%emt 0:01:50]} 54. Nc8 {[%emt 0:00:16]} Bb4 {[%emt 0:01:34]} 55. Rxa3 {[%emt 0:00:07] White mates.} Bxa3 {[%emt 0:00:02]} 56. Nxb6 {[%emt 0:00:07]} Kf6 {[%emt 0:00:04]} 57. Nd5+ {[%emt 0:00:10]} Ke6 {[%emt 0:00:07]} 58. b6 {[%emt 0:00:04] Weighted Error Value: White=0.11 (very precise) /Black=0.40} 1-0

[Event "58th Akiba Rubinstein A 2022"]
[Site "Polanica-Zdroj"]
[Date "2022.08.13"]
[Round "1.5"]
[White "Majocha, Piotr"]
[Black "Rog, Bartlomiej"]
[Result "1/2-1/2"]
[ECO "A05"]
[WhiteElo "2036"]
[BlackElo "2091"]
[Annotator "NA RC"]
[PlyCount "30"]
[EventDate "2022.08.13"]
[EventCountry "POL"]
[SourceTitle "playchess.com"]
[Source "ChessBase"]
[SourceQuality "1"]
[TimeControl "40/5400+30:1800+30"]

1. Nf3 Nf6 2. c4 g6 3. Nc3 Bg7 4. g3 O-O 5. Bg2 c6 6. O-O d5 7. cxd5 Nxd5 8. d4 c5 9. Nxd5 Qxd5 10. dxc5 Qxc5 11. Qb3 Nc6 12. Be3 Qa5 13. Rfd1 Qa6 14. Nd4 Nxd4 15. Bxd4 Be6 1/2-1/2

[Event "58th Akiba Rubinstein A 2022"]
[Site "Polanica-Zdroj"]
[Date "2022.08.13"]
[Round "1.6"]
[White "Paprocki, Antoni"]
[Black "Iwanczuk, Krzysztof"]
[Result "1-0"]
[ECO "D20"]
[WhiteElo "1981"]
[BlackElo "1947"]
[Annotator "TA"]
[PlyCount "37"]
[EventDate "2022.08.13"]
[EventCountry "POL"]
[SourceTitle "playchess.com"]
[Source "ChessBase"]
[SourceQuality "1"]
[TimeControl "40/5400+30:1800+30"]

{[%evp 11,37,7,27,48,156,147,250,229,272,282,272,280,277,272,328,250,295,218,218,233,320,293,389,388,369,288,287,287]} 1. d4 {[%emt 0:00:05]} d5 {[%emt 0:00:16]} 2. c4 {[%emt 0:00:11]} dxc4 {[%emt 0:00:11]} 3. e4 {[%emt 0:00:22]} b5 {[%emt 0:00:24]} 4. a4 {[%emt 0:00:46]} c6 {[%emt 0:00:15]} 5. Nc3 {[%emt 0:01:52]} b4 {[%emt 0:07:39]} 6. Na2 {[%emt 0:01:17]} e5 {[%emt 0:02:42]} 7. Nf3 {[%emt 0:01:24] D10: Slav Defence: 3 cxd5 (without early Nf3) and 3 Nc3.} Bg4 {[%emt 0:20:19]} ({Better is} 7... exd4 $14 8. Bxc4 Ba6 9. Bxa6 Nxa6) 8. Bxc4 $16 {[%emt 0:02:03] [#]} Nd7 $146 {[%emt 0:05:11] [#]} (8... Qe7 $16 {is a better defense.} 9. dxe5 Nd7) ({Predecessor:} 8... Qf6 9. dxe5 Bxf3 10. Qxf3 Qxf3 11. gxf3 Nd7 12. f4 a5 13. Be3 Bc5 14. Rc1 Bxe3 15. fxe3 {1-0 (29) Tkachiev,V (2634)-Lamorelle,J (2145) Cannes 1999}) 9. Qb3 $1 $18 {[%emt 0:06:17] White is clearly better.} (9. dxe5 Nxe5 10. Qxd8+ Rxd8 $11) 9... Qf6 {[%emt 0:15:55]} 10. Nxe5 {[%emt 0:06:18]} Nxe5 {[%emt 0:00:17]} 11. dxe5 {[%emt 0:00:08]} Qg6 {[%emt 0:00:31]} 12. O-O {[%emt 0:02:43] And now f4 would win.} (12. Nxb4 Rb8 13. Bxf7+ Qxf7 14. Qxf7+ Kxf7 15. Nxc6 Bb4+ 16. Kf1 Rb6 17. Nxa7 Ne7 $11) 12... Bc5 {[%emt 0:04:46]} 13. Kh1 {[%emt 0:08:03]} (13. Nxb4 Bxb4 14. Qxb4 Bh3) 13... Ne7 {[%emt 0:07:30]} 14. Be3 {[%emt 0:02:54]} ({Inferior is} 14. Nxb4 Rb8 $11) 14... Bxe3 {[%emt 0:02:54]} 15. Qxe3 {[%emt 0:00:25] Strongly threatening f4.} ({Resist} 15. fxe3 O-O 16. Nxb4 Be6) 15... a5 {[%emt 0:05:55]} 16. f4 {[%emt 0:01:58][%cal Bf2f4,Bf4f5,Bf5f6][%mdl 32]} Qh6 {[%emt 0:00:58]} 17. Qc5 {[%emt 0:03:25]} Be6 {[%emt 0:00:25]} 18. f5 {[%emt 0:03:26]} Bxc4 {[%emt 0:00:22]} 19. f6 {[%emt 0:00:28] Black got outplayed after the opening.  Weighted Error Value: White=0.19 (very precise) /Black=0.49} ({Don't do} 19. Qxc4 O-O 20. Rad1 Qh4 $18) 1-0

[Event "58th Akiba Rubinstein A 2022"]
[Site "Polanica-Zdroj"]
[Date "2022.08.13"]
[Round "1.7"]
[White "Kasprzak, Lukasz"]
[Black "Skurniak, Szymon"]
[Result "1/2-1/2"]
[ECO "D97"]
[WhiteElo "1938"]
[BlackElo "2051"]
[Annotator "NA RC"]
[PlyCount "56"]
[EventDate "2022.08.13"]
[EventCountry "POL"]
[SourceTitle "playchess.com"]
[Source "ChessBase"]
[SourceQuality "1"]
[TimeControl "40/5400+30:1800+30"]

1. d4 Nf6 2. c4 g6 3. Nc3 d5 4. Nf3 Bg7 5. Qb3 dxc4 6. Qxc4 O-O 7. e4 Nc6 8. Be2 e5 9. d5 Nd4 10. Nxd4 exd4 11. Qxd4 c6 12. Qc4 b5 13. Qc5 Re8 14. O-O cxd5 15. Bxb5 Nxe4 16. Nxe4 Rxe4 17. Bc6 Ba6 18. Rd1 Rc8 19. Qxd5 Qxd5 20. Bxd5 Re2 21. Be3 Bxb2 22. Rab1 Bc4 23. Bxc4 Rxc4 24. Kf1 Rec2 25. Bxa7 Ra4 26. Rxb2 Rxb2 27. Rd8+ Kg7 28. Bd4+ Rxd4 1/2-1/2

[Event "58th Akiba Rubinstein A 2022"]
[Site "Polanica-Zdroj"]
[Date "2022.08.13"]
[Round "1.8"]
[White "Dziewonski, Dariusz"]
[Black "Motyl, Tomasz"]
[Result "1-0"]
[ECO "B11"]
[WhiteElo "2029"]
[BlackElo "1936"]
[Annotator "NA RC"]
[PlyCount "53"]
[EventDate "2022.08.13"]
[EventCountry "POL"]
[SourceTitle "playchess.com"]
[Source "ChessBase"]
[SourceQuality "1"]
[TimeControl "40/5400+30:1800+30"]

1. e4 {[%emt 0:01:09]} c6 {[%emt 0:00:29]} 2. Nc3 {[%emt 0:00:15]} d5 {[%emt 0:00:43]} 3. Nf3 {[%emt 0:00:08]} Bg4 {[%emt 0:01:28]} 4. h3 {[%emt 0:00:07]} Bxf3 {[%emt 0:00:49]} 5. Qxf3 {[%emt 0:00:05]} Nf6 {[%emt 0:00:36]} 6. Be2 {[%emt 0:02:27]} e6 {[%emt 0:04:41]} 7. O-O {[%emt 0:01:18]} Be7 {[%emt 0:04:01]} 8. Rd1 {[%emt 0:05:00]} d4 {[%emt 0:11:02]} 9. Nb1 {[%emt 0:00:43]} O-O {[%emt 0:02:58]} 10. d3 {[%emt 0:07:09]} c5 {[%emt 0:04:07]} 11. a4 {[%emt 0:07:37]} Nc6 {[%emt 0:03:03]} 12. Na3 {[%emt 0:03:26]} a6 {[%emt 0:06:48]} 13. Bf4 {[%emt 0:10:40]} b5 {[%emt 0:05:29]} 14. b3 {[%emt 0:08:39]} Qb6 {[%emt 0:05:02]} 15. g3 {[%emt 0:06:23]} Rac8 {[%emt 0:06:17]} 16. Bd2 {[%emt 0:06:35]} Rc7 {[%emt 0:08:01]} 17. Qg2 {[%emt 0:10:46]} Rfc8 {[%emt 0:02:05]} 18. Kh1 {[%emt 0:01:44]} c4 {[%emt 0:10:32]} 19. axb5 {[%emt 0:06:21]} cxd3 {[%emt 0:05:44]} 20. Bxd3 {[%emt 0:01:37]} axb5 {[%emt 0:06:02]} 21. Nxb5 {[%emt 0:00:50]} Rb7 {[%emt 0:01:27]} 22. Na3 {[%emt 0:06:03]} Bxa3 {[%emt 0:03:25]} 23. Rxa3 {[%emt 0:00:05]} Nb4 {[%emt 0:00:16]} 24. Bxb4 {[%emt 0:01:19]} Qxb4 {[%emt 0:00:05]} 25. Ra4 {[%emt 0:00:43]} Qc3 {[%emt 0:01:00]} 26. Ba6 {[%emt 0:01:15]} Qxc2 {[%emt 0:03:49]} 27. Raxd4 {[%emt 0:01:05]} 1-0